bitfinex/quotes_ETHUSD_20240603
["timestamp","ask_amount","ask_price","bid_price","bid_amount"]
[1717385615646,0.56917938,3798.5,3797.8,0.09687511]
[1717385615817,2.63257,3798.6,3797.9,4.2396]
[1717385616028,2.63257,3798.6,3798.1,4.2396]
[1717385616276,2.63257,3798.6,3798.2,0.09687062]
[1717385621146,2.63257,3798.6,3798.3,4.0982]
[1717385626779,9.91227,3799.0,3798.3,4.0982]
[1717385627414,9.91227,3799.0,3798.3,4.50802]
[1717385631915,9.91227,3799.0,3798.5,0.474]
[1717385632320,2.63227,3799.0,3798.5,0.474]
[1717385632520,2.63227,3799.0,3798.6,0.09683304]
[1717385640246,2.63227,3799.0,3798.3,4.0982]
[1717385640399,2.63227,3799.0,3798.7,0.09683928]
[1717385640601,2.63227,3799.0,3798.3,4.0982]
[1717385640837,2.63227,3799.0,3798.8,0.09683816]
[1717385641038,2.63227,3799.0,3798.3,4.0982]
[1717385641542,0.56909147,3798.9,3798.4,0.57084265]
[1717385641843,2.63227,3799.0,3798.4,0.57084265]
[1717385642026,2.63227,3799.0,3798.4,0.09684265]
[1717385643510,2.63227,3799.0,3798.5,0.474]
[1717385643711,2.63227,3799.0,3798.6,4.2946404]
[1717385644015,2.63227,3799.0,3798.6,4.77150444]
[1717385646411,0.56906348,3798.9,3798.6,4.2946404]
[1717385647349,2.63227,3799.0,3798.6,4.2946404]
[1717385647850,0.5690585,3798.9,3798.6,4.2946404]
[1717385648834,2.63227,3799.0,3798.6,4.2946404]
[1717385649016,2.63227,3799.0,3798.6,4.77150444]
[1717385653334,2.63227,3799.0,3798.8,0.474]
[1717385653661,2.63227,3799.0,3798.9,0.09685544]
[1717385653828,3.20131415,3799.0,3798.9,0.09685544]
[1717385654037,3.20131415,3799.0,3798.8,0.474]
[1717385654238,2.63202,3799.4,3798.9,4.62582184]
[1717385654418,0.5690081,3799.3,3798.9,4.11095544]
[1717385654618,0.5690081,3799.3,3798.9,4.0141]
[1717385654824,2.63213,3799.2,3799.0,0.09682858]
[1717385655164,0.5690081,3799.1,3799.0,0.09682858]
[1717385658971,0.56903814,3799.1,3799.0,0.09682858]
[1717385660282,0.56903331,3799.1,3799.0,0.09682858]
[1717385661577,0.56903458,3799.1,3799.0,0.09682858]
[1717385662881,2.63213,3799.2,3799.0,0.09682858]
[1717385663176,0.56903104,3799.1,3799.0,0.09682858]
[1717385665279,0.56902588,3799.1,3799.0,0.09682858]
[1717385665882,0.56902588,3799.1,3798.9,4.0141]
[1717385666868,0.56902588,3799.1,3798.7,4.4316]
[1717385667180,0.56902588,3799.1,3798.9,0.474]
[1717385667342,0.56902588,3799.1,3799.0,0.09675871]
[1717385667542,2.63213,3799.2,3799.0,0.09675871]
[1717385668383,2.63189,3799.6,3799.0,0.09675871]
[1717385668542,0.56899672,3799.5,3799.1,3.9576]
[1717385668943,0.56899672,3799.5,3799.2,0.09675647]
[1717385669894,0.56899672,3799.5,3799.4,0.474]
[1717385670191,0.56895231,3799.8,3799.4,0.57057774]
[1717385671400,0.56895231,3799.8,3799.6,0.474]
[1717385672246,2.63161,3800.0,3799.6,0.474]
[1717385672594,0.56892162,3799.9,3799.7,0.09647141]
[1717385672883,0.56892162,3800.1,3799.7,0.09647141]
[1717385673073,0.56892162,3800.1,3799.9,3.8699]
[1717385673459,0.56892162,3800.1,3800.0,0.09646804]
[1717385674007,0.56892162,3800.1,3800.0,0.57046804]
[1717385674150,9.91132,3800.4,3800.0,0.57046804]
[1717385674496,9.91132,3800.4,3800.0,0.09646804]
[1717385676172,2.63132,3800.4,3800.0,0.09646804]
[1717385681499,9.91104,3800.8,3800.1,0.4440368]
[1717385681709,3.0,3800.7,3800.1,0.54028319]
[1717385681919,3.0,3800.7,3800.1,4.06298319]
[1717385683494,3.0,3800.7,3800.1,4.53698319]
[1717385688002,9.91104,3800.8,3800.1,4.53698319]
[1717385688910,9.91104,3800.8,3800.1,4.06298319]
[1717385689128,9.91104,3800.8,3800.1,4.53698319]
[1717385693398,7.28,3800.8,3800.1,4.53698319]
[1717385694094,7.28,3800.8,3800.1,9.79998319]
[1717385696342,7.28,3800.8,3800.3,3.4826]
[1717385696634,5.13077,3801.2,3800.7,0.474]
[1717385697200,5.13077,3801.2,3800.8,3.57837914]
[1717385698246,5.13077,3801.2,3800.8,0.09577914]
[1717385698692,5.13077,3801.2,3800.3,3.9566]
[1717385699062,5.13077,3801.2,3800.4,0.09578362]
[1717385699250,5.13077,3801.2,3800.7,0.474]
[1717385699446,5.13077,3801.2,3800.6,3.4826]
[1717385699652,5.13077,3801.2,3800.8,0.09577914]
[1717385700059,5.13077,3801.2,3800.6,3.4826]
[1717385700265,5.13077,3801.2,3800.9,0.09577802]
[1717385700488,5.13077,3801.2,3800.7,0.474]
[1717385700755,5.13077,3801.2,3801.0,0.0957769]
[1717385700988,5.13077,3801.2,3800.8,0.46249804]
[1717385701153,5.13077,3801.2,3801.1,0.09577578]
[1717385701357,5.13077,3801.2,3800.8,0.46249804]
[1717385701559,5.13077,3801.2,3800.9,0.09577802]
[1717385702103,2.5,3801.2,3801.1,3.4826]
[1717385702253,2.5,3801.2,3801.1,3.9566]
[1717385702463,2.5,3801.2,3801.1,4.05210755]
[1717385703393,2.5,3801.2,3801.1,3.57810755]
[1717385703580,2.5,3801.2,3801.1,4.71815507]
[1717385704311,2.5,3801.2,3801.1,4.24415507]
[1717385704512,2.5,3801.2,3801.1,4.71815507]
[1717385705836,0.8555356,3801.2,3801.1,4.24415507]
[1717385706146,0.8555356,3801.2,3801.1,4.71815507]
[1717385706419,0.474,3803.1,3801.1,4.71815507]
[1717385706420,2.6292,3803.5,3801.2,3.4401]
[1717385706578,2.6292,3803.5,3803.1,0.474]
[1717385707179,2.6292,3803.5,3802.9,0.474]
[1717385707368,2.89212,3803.5,3802.9,0.474]
[1717385707562,2.6292,3803.5,3802.4,3.4165]
[1717385707817,2.6292,3803.5,3803.3,0.474]
[1717385708421,2.6292,3803.5,3802.4,3.4165]
[1717385708587,2.6292,3803.5,3803.1,0.474]
[1717385708916,0.474,3803.9,3803.2,0.09451841]
[1717385709064,2.4582,3803.7,3802.4,3.4165]
[1717385709270,0.474,3803.5,3803.3,0.09451729]
[1717385709465,0.474,3803.5,3802.5,0.474]
[1717385709783,2.1439,3802.9,3801.8,2.6303]
[1717385709985,0.474,3802.7,3801.9,5.2599]
[1717385710188,0.524757,3802.6,3801.9,5.2599]
[1717385710586,2.62987,3802.5,3802.0,0.09453184]
[1717385710886,3.10387,3802.5,3802.1,5.2603]
[1717385711387,3.10387,3802.5,3802.2,0.0945296]
[1717385711584,3.10387,3802.5,3802.3,5.26]
[1717385711772,0.8368627,3802.4,3802.3,5.26]
[1717385711998,0.3628627,3802.4,3802.3,5.26]
[1717385712197,3.3628627,3802.4,3802.3,5.26]
[1717385712991,2.63027,3801.9,3800.7,3.3763]
[1717385713723,2.63027,3801.9,3800.7,6.00735]
[1717385713923,7.28,3802.3,3801.0,1.137]
[1717385714123,7.28,3802.3,3801.4,1.137]
[1717385714442,7.28,3802.3,3801.5,3.5187408]
[1717385714614,2.62994,3802.4,3801.5,3.5187408]
[1717385718940,2.62994,3802.4,3801.6,0.05260188]
[1717385719243,2.62994,3802.4,3801.7,0.56529211]
[1717385723044,2.62994,3802.4,3801.7,0.09445784]
[1717385723407,2.6302,3802.0,3800.9,3.5734]
[1717385723610,2.6302,3802.0,3801.0,0.09091057]
[1717385727437,2.62991,3802.5,3801.4,3.4509]
[1717385727762,2.62991,3802.5,3801.5,0.54981216]
[1717385730780,3.76603,3803.7,3801.5,0.54981216]
[1717385730781,2.62894,3803.9,3802.4,6.20175]
[1717385730980,2.62894,3803.9,3802.8,1.137]
[1717385731183,0.56838418,3803.8,3802.9,0.376664]
[1717385731395,2.62894,3803.9,3802.9,0.46748739]
[1717385731909,2.62894,3803.9,3802.9,0.56593965]
[1717385734755,9.4239,3804.4,3803.3,3.5601]
[1717385734756,9.9086,3804.4,3803.3,3.5601]
[1717385734956,2.6286,3804.4,3803.3,3.5601]
[1717385735155,2.6286,3804.4,3803.4,0.18848113]
[1717385735355,2.6286,3804.4,3803.3,3.5601]
[1717385737159,2.6286,3804.4,3803.0,2.62948]
[1717385737290,2.1439,3804.5,3803.1,0.732658]
[1717385737291,2.62875,3804.1,3803.1,0.732658]
[1717385737644,2.62875,3804.1,3803.1,0.92082097]
[1717385747435,2.62901,3803.7,3803.1,0.92082097]
[1717385747760,2.62901,3803.7,3803.1,0.18816297]
[1717385747961,2.62901,3803.7,3802.8,3.5601]
[1717385748646,2.62901,3803.7,3802.9,0.18781182]
[1717385752663,2.62901,3803.7,3802.8,3.5601]
[1717385752987,2.62901,3803.7,3803.0,0.18780811]
[1717385753295,2.62901,3803.7,3802.8,3.5601]
[1717385753588,2.62901,3803.7,3803.1,0.18780441]
[1717385753749,2.62901,3803.7,3802.9,0.35601]
[1717385756854,2.62901,3803.7,3803.0,0.18800201]
[1717385757053,2.62901,3803.7,3802.5,2.62982]
[1717385757278,2.62901,3803.7,3802.6,0.18801685]
[1717385758055,2.62928,3803.4,3802.6,0.18801685]
[1717385758474,2.62939,3803.2,3802.1,2.63011]
[1717385758796,2.62939,3803.2,3802.7,0.18180467]
[1717385759029,2.62939,3803.2,3802.2,0.921221]
[1717385759322,2.62939,3803.2,3802.1,2.63011]
[1717385759323,2.62965,3802.8,3802.0,3.5821]
[1717385762292,2.62965,3802.8,3801.7,2.63038]
[1717385762482,2.62965,3802.8,3801.8,0.779687]
[1717385763528,2.6299,3802.5,3801.8,0.779687]
[1717385763825,2.6299,3802.5,3801.6,3.5707]
[1717385763826,2.6299,3802.5,3801.3,2.63067]
[1717385766893,2.6299,3802.5,3801.3,3.76767]
[1717385773900,2.6299,3802.5,3801.6,0.18231247]
[1717385788818,2.63001,3802.3,3801.6,0.18231247]
[1717385793288,0.56855219,3802.2,3801.6,0.18231247]
[1717385793993,2.63001,3802.3,3801.9,0.473]
[1717385794330,2.63001,3802.3,3802.0,0.18238184]
[1717385795363,0.56855657,3802.2,3802.0,0.18238184]
[1717385795870,2.63001,3802.3,3802.0,0.18238184]
[1717385796072,0.56855856,3802.2,3802.0,0.18238184]
[1717385796674,0.56855856,3802.2,3801.3,2.63067]
[1717385796675,0.56855856,3802.2,3801.8,0.473]
[1717385796844,0.56856432,3802.2,3802.1,0.18237813]
[1717385797046,0.56856432,3802.2,3801.8,0.473]
[1717385797438,0.56856432,3802.2,3801.9,0.18238555]
[1717385798783,2.69556432,3802.2,3801.9,0.18238555]
[1717385798942,0.56856432,3802.1,3801.9,0.18238555]
[1717385799793,2.127,3802.2,3801.9,0.18238555]
[1717385801082,2.63001,3802.3,3801.9,0.18238555]
[1717385801283,2.63012,3802.1,3801.7,0.473]
[1717385801494,2.63012,3802.1,3801.8,0.18243687]
[1717385801706,2.63012,3802.1,3801.7,0.473]
[1717385801707,2.1301,3802.0,3801.7,0.473]
[1717385802008,2.1301,3802.0,3801.9,0.18241485]
[1717385802304,2.63026,3801.9,3800.9,6.10282]
[1717385802507,2.63026,3801.9,3801.4,0.473]
[1717385802685,0.56862715,3801.8,3801.4,0.473]
[1717385804016,2.63026,3801.9,3801.5,0.18261645]
[1717385804551,2.63026,3801.9,3801.6,0.473]
[1717385804857,2.63026,3801.9,3801.6,0.65571896]
[1717385808260,2.63026,3801.9,3801.6,0.18271896]
[1717385808555,2.63026,3801.9,3800.9,6.10282]
[1717385808711,2.63026,3801.9,3801.7,0.18262735]
[1717385808912,2.63026,3801.9,3801.4,0.473]
[1717385809111,2.1301,3802.0,3801.8,0.1826273]
[1717385809458,2.63063,3801.4,3800.8,0.473]
[1717385809757,2.63063,3801.4,3800.9,0.18279622]
[1717385809975,2.63063,3801.4,3800.8,0.473]
[1717385810252,2.63063,3801.4,3801.0,0.18279251]
[1717385810455,2.63063,3801.4,3801.1,5.2615]
[1717385810811,2.63063,3801.4,3801.2,0.18278509]
[1717385811128,2.63063,3801.4,3801.1,5.2615]
[1717385811314,2.63063,3801.4,3801.3,0.18278138]
[1717385811675,2.63063,3801.4,3801.1,5.2615]
[1717385811831,2.63063,3801.4,3801.3,0.18278138]
[1717385812035,2.63063,3801.4,3801.2,0.18278509]
[1717385812232,2.63063,3801.4,3801.3,0.18278138]
[1717385812529,2.63063,3801.4,3801.1,5.2615]
[1717385812734,2.63063,3801.4,3801.3,0.18278138]
[1717385812954,2.63063,3801.4,3801.1,5.2615]
[1717385813229,2.63063,3801.4,3801.3,0.18278138]
[1717385813447,2.63063,3801.4,3801.2,0.18278509]
[1717385813634,2.63063,3801.4,3801.3,0.18278138]
[1717385814052,2.63063,3801.4,3801.1,5.2615]
[1717385814276,2.63063,3801.4,3801.3,0.18278138]
[1717385814477,2.63063,3801.4,3801.2,0.18278509]
[1717385814676,2.63063,3801.4,3801.3,0.18278138]
[1717385814968,2.63063,3801.4,3801.1,5.2615]
[1717385815173,2.63063,3801.4,3801.3,0.18315135]
[1717385815367,2.63063,3801.4,3801.1,5.2615]
[1717385815573,2.63063,3801.4,3801.3,0.18315135]
[1717385815869,2.63063,3801.4,3801.1,5.2615]
[1717385816162,2.63063,3801.4,3801.2,0.18315506]
[1717385816343,2.63063,3801.4,3801.1,5.2615]
[1717385816546,2.63063,3801.4,3801.3,0.18311105]
[1717385816962,2.63063,3801.4,3801.1,5.2615]
[1717385817130,2.63063,3801.4,3801.3,0.18311105]
[1717385817332,2.63063,3801.4,3801.1,5.2615]
[1717385817568,2.63063,3801.4,3801.3,0.18311105]
[1717385817732,2.63063,3801.4,3801.1,5.2615]
[1717385817948,2.63063,3801.4,3801.3,0.18309273]
[1717385818147,2.63063,3801.4,3801.1,5.2615]
[1717385818361,2.63063,3801.4,3801.3,0.18309273]
[1717385818679,2.63063,3801.4,3801.1,5.2615]
[1717385818838,2.63063,3801.4,3801.3,0.18310006]
[1717385819038,2.63063,3801.4,3801.2,0.18310377]
[1717385819253,2.63063,3801.4,3801.3,0.18310006]
[1717385819634,2.63063,3801.4,3801.1,5.2615]
[1717385819838,2.63063,3801.4,3801.3,0.18307808]
[1717385820048,2.63063,3801.4,3801.2,0.18308179]
[1717385820251,2.63063,3801.4,3801.3,0.18307808]
[1717385820675,2.63063,3801.4,3801.1,5.2615]
[1717385820882,2.63063,3801.4,3801.3,0.18309273]
[1717385821178,2.63063,3801.4,3801.1,5.2615]
[1717385821383,2.63063,3801.4,3801.3,0.18309273]
[1717385821588,2.63063,3801.4,3801.1,5.2615]
[1717385821740,2.63063,3801.4,3801.3,0.18309273]
[1717385821943,4.76073,3801.4,3801.1,5.2615]
[1717385822190,4.76073,3801.4,3801.3,0.18309273]
[1717385822342,4.76073,3801.4,3801.1,5.2615]
[1717385822343,5.757103,3801.4,3801.1,5.2615]
[1717385822709,5.284103,3801.4,3801.3,0.18309273]
[1717385822991,5.284103,3801.4,3801.1,5.2615]
[1717385823288,5.284103,3801.4,3801.3,0.18309273]
[1717385823494,5.284103,3801.4,3801.2,0.18309644]
[1717385823796,5.284103,3801.4,3801.1,5.2615]
[1717385823974,5.284103,3801.4,3801.3,0.18309273]
[1717385824184,5.85286301,3801.4,3801.1,5.2615]
[1717385824346,5.284103,3801.4,3801.3,0.18309273]
[1717385824692,5.284103,3801.4,3801.1,5.2615]
[1717385825057,5.284103,3801.4,3801.2,0.18309644]
[1717385825390,5.284103,3801.4,3801.1,5.2615]
[1717385825555,5.284103,3801.4,3801.3,0.18309273]
[1717385825752,8.85286591,3801.4,3801.1,5.2615]
[1717385825983,5.284103,3801.4,3801.3,0.18309273]
[1717385826145,8.85285945,3801.4,3801.1,5.2615]
[1717385826341,8.284103,3801.4,3801.3,0.18309273]
[1717385826584,8.8528643,3801.4,3801.3,0.18309273]
[1717385826790,8.8528643,3801.4,3801.1,5.2615]
[1717385827101,8.284103,3801.4,3801.3,0.18309273]
[1717385827314,8.284103,3801.4,3801.2,0.18309644]
[1717385827315,8.85286879,3801.4,3801.2,0.18309644]
[1717385827456,2.63074,3801.2,3801.1,5.2615]
[1717385827810,2.63074,3801.2,3801.1,5.44460015]
[1717385831180,3.1995154,3801.2,3801.1,5.44460015]
[1717385831845,3.1995154,3801.2,3801.1,5.2615]
[1717385832103,2.63074,3801.2,3801.1,5.2615]
[1717385832393,3.19951476,3801.2,3801.1,5.44469909]
[1717385832892,4.13211354,3801.2,3801.1,5.44469909]
[1717385833055,4.60511354,3801.2,3801.1,5.44469909]
[1717385833594,4.60511354,3801.2,3801.1,5.2615]
[1717385833755,4.60511354,3801.2,3801.1,5.44469909]
[1717385839311,9.73521354,3801.2,3801.1,5.44469909]
[1717385839605,9.73521354,3801.2,3801.1,5.2615]
[1717385839908,9.73521354,3801.2,3801.1,5.44505084]
[1717385843122,9.16643878,3801.2,3801.1,5.44505084]
[1717385843416,9.73529048,3801.2,3801.1,5.44505084]
[1717385847416,12.36603048,3801.2,3801.1,5.44505084]
[1717385850799,12.36603048,3801.2,3801.1,6.37e-06]
[1717385850998,11.79717878,3801.2,3801.1,6.37e-06]
[1717385851212,2.63157,3800.0,3799.9,3.521]
[1717385851433,2.63157,3800.0,3799.9,3.69292425]
[1717385852695,2.63157,3800.0,3799.9,4.06221668]
[1717385853604,2.63131,3800.4,3799.9,4.06221668]
[1717385853921,2.63131,3800.4,3799.9,3.89029243]
[1717385855221,7.28,3800.6,3799.9,3.89029243]
[1717385855525,7.28,3800.6,3800.3,0.473]
[1717385855725,7.28,3800.6,3800.4,3.4486]
[1717385860818,2.63104,3800.8,3800.4,3.4486]
[1717385861346,2.63104,3800.8,3800.5,0.17177002]
[1717385861711,2.63104,3800.8,3800.4,3.4486]
[1717385861891,2.63104,3800.8,3800.6,0.17176631]
[1717385862087,2.63104,3800.8,3800.5,0.17177002]
[1717385862387,2.63104,3800.8,3800.6,0.17176631]
[1717385862792,2.63104,3800.8,3800.4,3.4486]
[1717385863021,2.63104,3800.8,3800.5,0.17177002]
[1717385863205,2.63104,3800.8,3800.4,3.4486]
[1717385863627,3.10404,3800.8,3800.5,0.17177002]
[1717385863931,3.10404,3800.8,3799.7,3.2842]
[1717385863932,0.56881407,3800.7,3799.7,3.2842]
[1717385864130,3.10404,3800.8,3799.8,1.188906]
[1717385864446,2.63104,3800.8,3799.9,3.2842]
[1717385864598,2.63104,3800.8,3800.0,0.55]
[1717385864599,0.473,3800.6,3800.0,0.55]
[1717385864946,0.473,3800.6,3800.0,0.72151736]
[1717385865161,0.473,3800.6,3800.1,0.46446234]
[1717385865316,1.04181847,3800.7,3800.2,0.55]
[1717385865496,1.04181847,3800.7,3800.2,0.72150993]
[1717385866955,0.56881847,3800.7,3800.3,3.3403]
[1717385867251,2.63104,3800.8,3800.4,0.72160146]
[1717385868852,2.63104,3800.8,3800.5,0.17157209]
[1717385869005,2.63104,3800.8,3800.6,0.55]
[1717385869353,2.63104,3800.8,3800.4,0.55]
[1717385869354,2.63104,3800.8,3800.7,0.17156467]
[1717385870160,2.63104,3800.8,3800.4,0.55]
[1717385870297,2.63104,3800.8,3800.7,0.17156467]
[1717385870496,2.63104,3800.8,3800.4,0.55]
[1717385870762,2.63104,3800.8,3800.7,0.17156467]
[1717385870904,2.63104,3800.8,3800.4,0.55]
[1717385871105,2.63104,3800.8,3800.7,0.17156467]
[1717385871344,2.63104,3800.8,3800.4,0.55]
[1717385871851,2.63104,3800.8,3800.5,0.17157209]
[1717385872237,0.56881659,3800.7,3800.6,0.17156838]
[1717385872401,2.63104,3800.8,3800.4,0.55]
[1717385872600,2.63104,3800.8,3800.5,0.17157209]
[1717385872796,2.63104,3800.8,3800.4,0.55]
[1717385873057,2.63104,3800.8,3800.5,0.17157209]
[1717385873257,2.63104,3800.8,3800.4,0.55]
[1717385873519,2.63104,3800.8,3800.5,0.17157209]
[1717385874046,2.63104,3800.8,3800.6,0.17156104]
[1717385874292,2.63104,3800.8,3800.4,0.55]
[1717385874405,2.63104,3800.8,3800.5,0.17156476]
[1717385874746,2.63104,3800.8,3800.4,0.55]
[1717385874913,2.63104,3800.8,3800.6,0.17156104]
[1717385875120,2.63104,3800.8,3800.5,0.17156476]
[1717385875302,2.63104,3800.8,3800.7,0.17155733]
[1717385875502,3.19983386,3800.8,3800.6,0.17156104]
[1717385875743,2.63104,3800.8,3800.7,0.17155733]
[1717385876045,3.19984655,3800.8,3800.4,0.55]
[1717385876238,2.63104,3800.8,3800.5,0.17156476]
[1717385876448,2.63104,3800.8,3800.4,0.55]
[1717385876650,2.63104,3800.8,3800.5,0.17156476]
[1717385876855,2.63104,3800.8,3800.4,0.55]
[1717385877054,2.63104,3800.8,3800.5,0.17156476]
[1717385877350,2.63104,3800.8,3800.4,0.55]
[1717385877535,2.63104,3800.8,3800.6,0.17156104]
[1717385877707,2.63104,3800.8,3800.5,0.17156476]
[1717385877906,2.63104,3800.8,3800.7,0.17155733]
[1717385878234,3.19982824,3800.8,3800.7,0.17155733]
[1717385878547,3.19982824,3800.8,3800.4,0.55]
[1717385878840,2.63104,3800.8,3800.4,0.55]
[1717385879058,2.63104,3800.8,3800.5,0.17156476]
[1717385879234,2.63104,3800.8,3800.4,0.55]
[1717385879443,2.63104,3800.8,3800.5,0.17156476]
[1717385879659,2.63104,3800.8,3800.4,0.55]
[1717385879813,2.63104,3800.8,3800.5,0.17156476]
[1717385880016,2.63104,3800.8,3800.4,0.55]
[1717385880213,2.63104,3800.8,3800.5,0.17156476]
[1717385880463,2.63104,3800.8,3800.4,0.55]
[1717385880616,2.63104,3800.8,3800.5,0.17156476]
[1717385880816,2.63104,3800.8,3800.4,0.55]
[1717385881055,2.63104,3800.8,3800.5,0.17156476]
[1717385881350,2.63104,3800.8,3800.4,0.55]
[1717385881557,2.63104,3800.8,3800.6,0.17156104]
[1717385881756,0.56880442,3800.7,3800.5,0.17156476]
[1717385881929,0.56880442,3800.7,3800.4,0.55]
[1717385882129,0.56880095,3800.7,3800.4,0.55]
[1717385886322,1.7374,3800.6,3799.7,3.1264]
[1717385886637,2.63159,3800.0,3799.1,3.5994]
[1717385887788,2.63159,3800.0,3799.3,0.473]
[1717385888161,2.63159,3800.0,3799.4,0.17160196]
[1717385888749,2.63159,3800.0,3799.5,0.55]
[1717385889079,2.63159,3800.0,3799.6,0.17159453]
[1717385889260,2.63159,3800.0,3799.7,0.55]
[1717385889598,2.63159,3800.0,3799.8,0.1715871]
[1717385889757,2.63159,3800.0,3799.9,0.55]
[1717385890080,2.63159,3800.0,3799.9,0.72158339]
[1717385890280,2.63159,3800.0,3799.9,0.55]
[1717385892768,2.63159,3800.0,3799.7,0.55]
[1717385892974,2.63159,3800.0,3799.9,0.17158339]
[1717385893283,2.63159,3800.0,3799.9,0.72158339]
[1717385895580,2.63159,3800.0,3799.9,0.17158339]
[1717385896015,2.63159,3800.0,3799.4,3.107]
[1717385896313,2.63159,3800.0,3799.9,0.17182165]
[1717385896502,2.63159,3800.0,3799.5,0.72183651]
[1717385896703,2.63159,3800.0,3799.9,0.17182165]
[1717385897012,2.63159,3800.0,3799.5,0.55]
[1717385897213,2.63159,3800.0,3799.9,0.17182165]
[1717385897391,2.63159,3800.0,3799.5,0.55]
[1717385897581,2.63159,3800.0,3799.9,0.17182165]
[1717385897782,2.63159,3800.0,3799.5,0.55]
[1717385897977,2.63159,3800.0,3799.9,0.17182165]
[1717385898180,2.63159,3800.0,3799.5,0.55]
[1717385898389,2.63159,3800.0,3799.9,0.17182165]
[1717385898589,2.63159,3800.0,3799.5,0.55]
[1717385898791,2.63159,3800.0,3799.9,0.17182165]
[1717385899330,2.63159,3800.0,3799.5,0.55]
[1717385899485,2.63159,3800.0,3799.9,0.17182165]
[1717385899826,2.63159,3800.0,3799.5,0.55]
[1717385900331,2.63159,3800.0,3799.6,0.1718328]
[1717385900623,2.63159,3800.0,3799.7,0.55]
[1717385900821,2.63159,3800.0,3799.8,3.1931]
[1717385900977,2.63159,3800.0,3799.8,3.36492537]
[1717385901791,2.63159,3800.0,3799.8,0.17182537]
[1717385902101,2.63159,3800.0,3799.7,0.55]
[1717385902303,2.63159,3800.0,3799.5,3.6661]
[1717385902304,2.63159,3800.0,3799.8,0.17182537]
[1717385902625,2.63159,3800.0,3799.7,0.473]
[1717385902925,2.63159,3800.0,3799.8,0.72182537]
[1717385905433,3.115809,3800.0,3799.8,0.72182537]
[1717385907989,2.63159,3800.0,3799.8,0.72182537]
[1717385912384,2.63159,3800.0,3799.8,0.55]
[1717385912582,2.63159,3800.0,3799.9,0.17178132]
[1717385912827,2.63159,3800.0,3799.7,0.55]
[1717385915834,2.63159,3800.0,3799.6,0.55]
[1717385916187,2.63159,3800.0,3799.7,0.17178875]
[1717385916518,0.56891843,3799.9,3799.8,0.55]
[1717385916718,0.56891843,3799.9,3799.6,0.55]
[1717385917024,0.56891843,3799.9,3799.7,0.17178875]
[1717385917199,0.56891843,3799.9,3799.8,0.55]
[1717385917398,2.63133,3800.4,3799.9,3.2603]
[1717385917628,0.56886771,3800.3,3800.0,1.023]
[1717385917832,0.56886771,3800.3,3800.0,1.19496087]
[1717385919223,0.56886771,3800.3,3800.0,0.72196087]
[1717385925711,0.56888744,3800.3,3800.0,0.72196087]
[1717385925906,1.66420918,3800.3,3800.0,0.72196087]
[1717385928360,2.63144,3800.2,3800.0,0.17196087]
[1717385928568,0.56891168,3800.1,3800.0,0.17196087]
[1717385928776,0.56891168,3800.1,3799.5,3.2955]
[1717385929066,0.56891168,3800.1,3799.6,0.55]
[1717385929285,0.56891168,3800.1,3799.7,0.1717081]
[1717385930264,2.63159,3800.0,3799.7,0.1717081]
[1717385931558,2.63159,3800.0,3799.6,0.55]
[1717385931861,2.63159,3800.0,3799.7,0.1717081]
[1717385932355,2.63159,3800.0,3799.4,0.55]
[1717385932356,2.63159,3800.0,3799.8,0.17170439]
[1717385932748,2.63159,3800.0,3799.4,0.55]
[1717385932949,2.63183,3799.7,3799.5,0.17171553]
[1717385933156,2.63213,3799.2,3798.6,3.4236]
[1717385933359,0.473,3799.0,3798.6,3.4236]
[1717385933565,0.473,3799.0,3798.7,0.16069515]
[1717385934621,0.473,3798.8,3798.7,0.16069515]
[1717385935162,0.473,3798.8,3798.2,3.4236]
[1717385935358,0.473,3798.8,3798.7,0.16069515]
[1717385935569,0.473,3798.8,3798.2,3.4236]
[1717385936031,2.63234,3798.9,3798.3,0.16071002]
[1717385936225,2.63234,3798.9,3798.2,3.4236]
[1717385936226,3.10534,3798.9,3798.2,3.4236]
[1717385936537,3.589634,3798.9,3798.3,0.1611868]
[1717385936741,3.589634,3798.9,3798.4,0.55]
[1717385936929,3.589634,3798.9,3798.5,0.16117936]
[1717385937534,3.116634,3798.9,3798.5,0.16117936]
[1717385938236,2.63198,3799.5,3798.8,0.473]
[1717385938568,2.63198,3799.5,3798.9,0.7111645]
[1717385941347,4.84258,3799.5,3798.9,0.7111645]
[1717385941734,0.473,3799.3,3798.9,0.7111645]
[1717385941935,0.957258,3799.3,3798.9,0.7111645]
[1717385942472,0.957258,3799.3,3798.9,0.1611645]
[1717385942668,0.957258,3799.3,3798.4,3.10566]
[1717385942968,0.484258,3799.3,3798.5,0.71117936]
[1717385944141,2.63213,3799.2,3798.5,0.71117936]
[1717385944337,3.1648288,3799.2,3798.5,0.71117936]
[1717385946649,3.1648288,3799.2,3798.5,1.18417936]
[1717385947548,3.1648288,3799.2,3798.5,0.71117936]
[1717385947748,3.1648288,3799.2,3798.5,1.18417936]
[1717385951893,3.1648288,3799.2,3798.8,3.4054]
[1717385951894,2.63213,3799.2,3798.8,3.4054]
[1717385952208,2.63213,3799.2,3799.1,0.473]
[1717385952500,2.63213,3799.2,3799.1,1.1845091]
[1717385953368,5.63186,3799.6,3799.1,1.1845091]
[1717385953570,2.63186,3799.6,3799.3,0.473]
[1717385953904,2.63186,3799.6,3799.4,0.71149796]
[1717385954261,2.63186,3799.6,3799.4,0.55]
[1717385954483,2.63186,3799.6,3799.2,0.55]
[1717385954694,2.63186,3799.6,3799.5,0.16149424]
[1717385954867,2.63186,3799.6,3799.2,0.55]
[1717385955073,2.63186,3799.6,3799.3,0.16150167]
[1717385955300,2.63186,3799.6,3799.4,0.55]
[1717385955799,2.63186,3799.6,3799.2,0.55]
[1717385956102,2.63186,3799.6,3799.3,0.16150167]
[1717385956266,2.63186,3799.6,3799.4,0.55]